[Event "3rd Caraca Open 2022"]
[Site "Catas Altas"]
[Date "2022.07.10"]
[Round "5.2"]
[White "Languidey, Simon Alejandro"]
[Black "Diamant, Andre"]
[Result "1/2-1/2"]
[ECO "B26"]
[WhiteElo "2424"]
[BlackElo "2538"]
[Annotator "TA"]
[PlyCount "115"]
[EventDate "2022.06.28"]
[EventCountry "BRA"]
[SourceTitle "playchess.com"]
[Source "ChessBase"]
[SourceQuality "1"]
[TimeControl "900+5"]

{[%evp 14,115,0,-27,-22,-9,0,0,0,-17,0,0,30,20,38,32,27,39,45,43,64,44,54,52,116,114,127,90,141,145,154,143,156,157,316,247,247,238,231,225,213,161,166,184,447,0,0,0,107,110,572,0,29978,9842,29966,631,635,426,432,423,413,-112,-102,-102,0,10,20,20,22,-36,26,26,93,102,398,0,0,0,6,0,0,-29,0,0,0,-25,-22,-97,-105,-164,-58,-88,47,0,64,52,55,0,0,-48,38,69,62,46]} 1. e4 {[%emt 0:15:10]} c5 {[%emt 0:15:10]} 2. Nc3 {[%emt 0:00:05]} Nc6 {[%emt 0:00:05]} 3. g3 {[%emt 0:00:05]} g6 {[%emt 0:00:05]} 4. Bg2 {[%emt 0:00:05]} Bg7 {[%emt 0:00:05]} 5. d3 {[%emt 0:00:05]} d6 {[%emt 0:00:05]} 6. Be3 {[%emt 0:00:05]} Rb8 {[%emt 0:00:05]} 7. Qd2 {[%emt 0:00:05]} b5 {[%emt 0:00:05]} 8. a3 {[%emt 0:00:05]} a5 {[%emt 0:00:05] B26: Closed Sicilian: 3 g3, lines with early Be3.} 9. Nge2 {[%emt 0:00:05]} b4 {[%emt 0:00:05]} 10. axb4 {[%emt 0:00:05]} axb4 {[%emt 0:00:05] The position is equal.} 11. Nd1 {[%emt 0:00:05]} e5 {[%emt 0:00:05]} 12. O-O {[%emt 0:00:05]} Nge7 {[%emt 0:00:05]} 13. Bh6 {[%emt 0:00:05]} O-O {[%emt 0:00:05]} 14. Bxg7 {[%emt 0:00:05]} Kxg7 {[%emt 0:00:05]} 15. Ne3 {[%emt 0:00:05]} Be6 {[%emt 0:00:05]} 16. f4 {[%emt 0:00:05] [#]} exf4 $146 {[%emt 0:00:05]} ({Predecessor:} 16... f6 17. f5 Bf7 18. fxg6 hxg6 19. Ng4 Ng8 20. Bh3 Qe7 21. Ne3 Nd4 22. Nxd4 cxd4 {0-1 (47) Horvat,D (2095)-Balla,T (2260) Predeal 2007}) 17. gxf4 {[%emt 0:00:05]} f6 {[%emt 0:00:05]} 18. f5 {[%emt 0:00:05]} Bf7 {[%emt 0:00:05]} (18... gxf5 $14 19. Nf4 (19. exf5 Bc8 $14) (19. Nxf5+ Bxf5 20. exf5 Kh8 $14) 19... Bc8) 19. fxg6 $16 {[%emt 0:00:05]} hxg6 {[%emt 0:00:05]} 20. Rf2 {[%emt 0:00:05]} Qd7 {[%emt 0:00:05]} (20... Ne5 $142) 21. Raf1 $1 {[%emt 0:00:05]} Bg8 {[%emt 0:00:05]} 22. Nf4 {[%emt 0:00:05] Prevents d5.} Be6 {[%emt 0:00:05] Inhibits Bh3.} 23. Ned5 {[%emt 0:00:05][%cal Od5f6]} Ng8 {[%emt 0:00:05]} (23... Ne5 $16) 24. Qe3 {[%emt 0:00:05][%cal Of4g6] Strongly threatening Nxg6!} (24. Nxe6+ $6 Qxe6 25. Nf4 Qe5 $18) 24... Ne5 {[%emt 0:00:05]} 25. Qg3 {[%emt 0:00:05]} Bxd5 {[%emt 0:00:05]} 26. exd5 {[%emt 0:00:05]} (26. Nxd5 $6 Qg4 $16) 26... Rbe8 27. Bh3 {[%emt 0:00:05] Inhibits Qg4.} f5 {[%emt 0:00:10]} 28. Rg2 {[%emt 0:00:05][%cal Rf4g6]} Qf7 {[%emt 0:00:05] [#]} (28... Ne7 {was necessary.} 29. Ne6+ Kh8 30. Nxf8 Rxf8) 29. Nh5+ $2 {[%emt 0:00:05]} (29. Bxf5 $1 $18 {[%mdl 512]} Qxf5 30. Ne6+ Rxe6 31. Rxf5) 29... Kh8 $11 {[%emt 0:00:05]} 30. Nf4 {[%emt 0:00:05]} Ne7 {[%emt 0:00:05]} (30... Kg7 $11 {remains equal.}) 31. Ne6 $16 {[%emt 0:00:05]} Rg8 $2 {[%emt 0:00:05][%mdl 8192]} (31... Qf6 $16 {is tougher.} 32. Rgf2 (32. Nxf8 Rxf8 33. Rgf2 Ra8 $16) 32... Rf7) 32. Ng5 $2 {[%emt 0:00:05]} (32. Qh4+ $18 Qh7 33. Qf6+ Rg7 34. Nxg7 Qxg7 35. Qxd6) 32... Qf6 $2 {[%emt 0:00:05][%mdl 8192]} (32... Qxd5 $11 33. Rgf2 (33. Qh4+ Kg7 $15) 33... Kg7) 33. Qh4+ {[%emt 0:00:05]} Kg7 34. Ne6+ {[%emt 0:00:05]} (34. Qh7+ $142 Kf8 35. Ne6+ Qxe6 36. dxe6 Ra8 37. Bxf5 $1 {[%mdl 512]} Ke8 38. Be4 Nd7 39. Bxa8) 34... Kf7 $18 {[%emt 0:00:10]} 35. Qh7+ {[%emt 0:00:05]} Rg7 {[%emt 0:00:05]} 36. Nxg7 {[%emt 0:00:05]} Qxg7 {[#]} 37. Qh4 {[%emt 0:00:05]} (37. Bxf5 $1 $18 {[%csl Gd5][%cal Rf5e6][%mdl 512]} Qxh7 38. Bxg6+ Kg8 39. Bxe8+ Kh8 40. Rf8+ Ng8 41. b3) 37... Rh8 $1 $17 {[%emt 0:00:10]} 38. Qg3 {[%emt 0:00:05][%cal Oh3f5] Hoping for Bxf5!} Qf6 {[%emt 0:00:05]} ({Black should try} 38... Qh6 $1 $17 {[%cal Rh6h3]} 39. Bg4 (39. d4 $2 cxd4 40. Bg4 Nxd5 $19) 39... Nxd5) 39. Re2 $11 {[%emt 0:00:05]} Nxd5 {[%emt 0:00:05]} 40. Bg2 {[%emt 0:00:05]} Ne7 {[%emt 0:00:05]} 41. Ree1 {[%emt 0:00:05]} ({White should play} 41. c3 $11) 41... Ng4 {[%emt 0:00:05]} (41... g5 $15) 42. h3 {[%emt 0:00:05]} Qd4+ {[%emt 0:00:05]} (42... Ne5 $11) 43. Kh1 $16 {[%emt 0:00:05]} Ne5 $2 {[%emt 0:00:05][%mdl 8192] [#]} (43... Nf6 $16 {is a better defense.} 44. Rxe7+ Kxe7) 44. b3 $2 {[%emt 0:00:05]} ({Only move:} 44. Re4 $1 $18 {[%cal Re4d4]} Qxb2 45. d4 cxd4 46. Rxe5 dxe5 47. Qxe5) 44... Qc3 {[%emt 0:00:05]} 45. Re2 {[%emt 0:00:05]} Qd4 {[%emt 0:00:05]} 46. Ree1 {[%emt 0:00:05]} Kf6 {[%emt 0:00:05]} 47. Ra1 {[%emt 0:00:05]} Qc3 {[%emt 0:00:05][%mdl 1024] Black has compensation.} 48. Ra6 {[%emt 0:00:05]} (48. Ra7 Qxc2 49. Re1 (49. h4 Qd2 $17) 49... Qc3 $17) 48... Ke6 {[%emt 0:00:05]} 49. Qf2 {[%emt 0:00:05]} g5 {[%emt 0:00:05]} 50. Ra7 {[%emt 0:00:05] [#]} (50. Ra8 $11 Rh5 51. Re8) 50... f4 $1 $17 {[%emt 0:00:05][%cal Of4f3] aiming for ...f3!} 51. Re1 {[%emt 0:00:05]} ({Wrong is} 51. Qe2 $2 Nf5 52. Kg1 Ng3 $19) (51. Ra8 $17 {was called for.} Rxa8 52. Bxa8) 51... Kf6 {[%emt 0:00:05]} (51... Nf5 $19 {White must now prevent ...g4.} 52. Kg1 Qd4) 52. Ra6 Nc8 {[%emt 0:00:05] Pair of Knights!} (52... Nf5 $17 {Threatens to win with ...Ng4.} 53. Kg1 Ke6) 53. Re2 {[%emt 0:00:10]} (53. Kg1 $14) 53... Ke6 {[%emt 0:00:05]} (53... Kg7 $11 54. Bf1 Rh5) 54. Qf3 $36 {[%emt 0:00:05][%mdl 2048] White fights for an advantage.} Qd4 {[%emt 0:00:05] Against Qd5+} 55. Qb7 {[%emt 0:00:05]} ({Better is} 55. Re4 $14 Kd7 56. Qf1 (56. Rxd4 Nxf3 57. Rd5 Nd4 $11) (56. Rxe5 Qxe5 57. Qg4+ Ke7 $11)) 55... Kf6 $11 {[%emt 0:00:05][%cal Of4f3] ...f3! is the strong threat.} 56. Qe4 {[%emt 0:00:05] Inhibits f3.} (56. Re4 $11 {deserves consideration.} Qb2 57. Re1) 56... f3 {[%emt 0:00:05]} (56... Qxe4 $15 57. Rxe4 Kf5) 57. Bxf3 $14 {[%emt 0:00:05] The board is on fire.} Rxh3+ {[%emt 0:00:05]} 58. Kg2 {[%emt 0:00:05] Weighted Error Value: White=0.62/Black=0.71} 1/2-1/2

[Event "3rd Caraca Open 2022"]
[Site "Catas Altas"]
[Date "2022.07.10"]
[Round "5.3"]
[White "Supi, Luis Paulo"]
[Black "Ribeiro, Braulio Silva"]
[Result "1-0"]
[ECO "C55"]
[WhiteElo "2603"]
[BlackElo "1911"]
[Annotator "TA"]
[PlyCount "81"]
[EventDate "2022.06.28"]
[EventCountry "BRA"]
[SourceTitle "playchess.com"]
[Source "ChessBase"]
[SourceQuality "1"]
[TimeControl "900+5"]

{[%evp 13,81,35,47,39,47,39,51,43,64,59,62,62,60,65,58,56,158,0,0,-27,-22,-60,-22,-118,-100,-99,-82,-156,-152,-141,-113,-125,-138,-186,-187,-214,-208,-215,-132,-189,-101,-178,-131,-125,-81,-118,-92,-119,-60,-66,48,38,779,740,1212,1208,1110,992,902,1175,964,902,866,859,725,558,796,771,750,731]} 1. e4 {[%emt 0:00:01]} e5 {[%emt 0:00:02]} 2. Nf3 {[%emt 0:00:02]} Nc6 {[%emt 0:00:02]} 3. Bc4 {[%emt 0:00:01]} Be7 {[%emt 0:00:06]} 4. O-O {[%emt 0:00:03]} Nf6 {[%emt 0:00:03]} 5. d3 {[%emt 0:00:03]} O-O {[%emt 0:00:03]} 6. Re1 {[%emt 0:00:01]} d6 {[%emt 0:00:38]} 7. a4 {[%emt 0:00:01]} Bg4 {[%emt 0:00:14]} 8. h3 {[%emt 0:00:02] C55: Two Knights: 4 d3, 4 d4 exd4 5 e5 and Max Lange Attack.} Bh5 {[%emt 0:00:02]} 9. c3 {[%emt 0:00:02]} h6 {[%emt 0:00:26]} 10. Nbd2 {[%emt 0:00:01] White is slightly better.} Re8 {[%emt 0:00:15] [#]} 11. b4 $146 {[%emt 0:00:06]} ({Predecessor:} 11. Nf1 Nh7 12. Ng3 Bg6 13. a5 a6 14. b4 Ng5 15. Nh2 Ne6 16. Ng4 Bg5 17. Ne3 {½-½ (29) Fasshauer,J (2062)-Engert,K (1718) Aurich 2018}) 11... d5 {[%emt 0:00:11]} 12. exd5 {[%emt 0:00:52]} Nxd5 {[%emt 0:00:03]} 13. Ne4 {[%emt 0:00:01]} Bf8 {[%emt 0:02:43]} 14. Bd2 {[%emt 0:02:57]} Bg6 {[%emt 0:01:24]} (14... Nf6 $14) 15. Qb3 $2 {[%emt 0:00:41]} (15. b5 $16) 15... Nb6 $11 {[%emt 0:00:36]} 16. Rad1 {[%emt 0:00:48]} (16. Bb5 $5 {[%cal Ra4a5]} a5 17. Qb2 $11) 16... Nxc4 {[%emt 0:01:22]} (16... a6 {with more complications.} 17. Be3 Nxc4 18. Qxc4 Bf5) 17. dxc4 {[%emt 0:00:34][%cal Od2h6]} Qc8 {[%emt 0:01:03]} 18. Bc1 {[%emt 0:02:05]} (18. c5 $11) 18... f5 {[%emt 0:00:37]} 19. Ng3 {[%emt 0:00:15]} e4 {[%emt 0:01:07]} 20. Nh4 {[%emt 0:00:31] [#]} (20. Nd4 $142) 20... Bh7 $1 $17 {[%emt 0:00:13]} 21. c5+ {[%emt 0:02:14]} Kh8 {[%emt 0:00:11]} 22. Nh5 {[%emt 0:00:40]} Ne5 {[%emt 0:00:47]} 23. Be3 {[%emt 0:00:52] [#]} (23. a5 $17) 23... Be7 $1 $19 {[%emt 0:00:32]} 24. f4 {[%emt 0:01:28]} Bxh4 {[%emt 0:00:20]} 25. fxe5 {[%emt 0:00:03]} Bxe1 {[%emt 0:00:24]} 26. Rxe1 {[%emt 0:01:06]} (26. Qf7 $17 {was necessary.} Rg8 27. Rxe1) 26... Qe6 {[%emt 0:00:21]} (26... Bg8 $19 27. Qd1 a5) 27. Qb2 {[%emt 0:00:06]} (27. Qxe6 $17 Rxe6 28. Rd1) 27... Rad8 {[%emt 0:01:00]} ({Resist} 27... Qxe5 28. Bd4 Qe7 29. Nxg7 $16) (27... Qf7 $19 28. Qe2 Bg6) 28. Bd4 $17 {[%emt 0:00:01]} Qc4 {[%emt 0:00:52]} 29. Qf2 {[%emt 0:00:32]} Re7 {[%emt 0:00:42]} 30. Kh2 {[%emt 0:00:23]} a5 {[%emt 0:00:12]} (30... b6 $17 31. Qg3 Rdd7) 31. bxa5 $15 {[%emt 0:00:19]} Red7 {[%emt 0:00:01]} (31... Kg8 $15) 32. Qg3 $1 $14 {[%emt 0:00:14][%cal Oe5e6] aiming for e6!} Qf7 {[%emt 0:00:18][%mdl 8192] A mistake that costs the game.} (32... Qxa4 $2 33. e6 Qxd4 34. cxd4 $18) (32... Qe6 $14) 33. e6 $1 $18 {[%emt 0:00:08] White is clearly winning.} Qxe6 {[%emt 0:00:17]} 34. Bxg7+ {[%emt 0:00:20]} Kg8 {[%emt 0:00:04]} 35. Bf6+ {[%emt 0:00:11][%mdl 64] Discovered Attack} Kf8 {[%emt 0:00:22]} 36. Bxd8 {[%emt 0:00:04]} Qg6 {[%emt 0:00:13]} 37. Qxg6 {[%emt 0:00:11]} Bxg6 {[%emt 0:00:01]} 38. Nf4 {[%emt 0:00:00] And now c6 would win.} Rxd8 {[%emt 0:00:10]} 39. Nxg6+ {[%emt 0:00:05]} Kg7 {[%emt 0:00:02]} 40. Nf4 {[%emt 0:00:01] Hoping for Ne6+.} Kf6 {[%emt 0:00:09] Inhibits Ne6.} 41. Rb1 {[%emt 0:00:13] Weighted Error Value: White=0.33/Black=0.31} 1-0

[Event "3rd Caraca Open 2022"]
[Site "Catas Altas"]
[Date "2022.07.10"]
[Round "5.4"]
[White "Gomes, Luiz Alexandre de So"]
[Black "Barreto de Jesus, Leonardo"]
[Result "1-0"]
[ECO "B30"]
[WhiteElo "2335"]
[BlackElo "1781"]
[Annotator "RC"]
[PlyCount "51"]
[EventDate "2022.06.28"]
[EventCountry "BRA"]
[SourceTitle "playchess.com"]
[Source "ChessBase"]
[SourceQuality "1"]
[TimeControl "900+5"]

1. e4 {[%emt 0:00:00]} c5 {[%emt 0:00:04]} 2. Nf3 {[%emt 0:00:02]} g6 {[%emt 0:00:01]} 3. c3 {[%emt 0:00:09]} Bg7 {[%emt 0:00:07]} 4. d3 {[%emt 0:00:02]} Nc6 {[%emt 0:00:16]} 5. Nbd2 {[%emt 0:00:02]} Nf6 {[%emt 0:00:05]} 6. Be2 {[%emt 0:00:02]} d5 {[%emt 0:00:51]} 7. O-O {[%emt 0:00:03]} O-O {[%emt 0:00:16]} 8. Qc2 {[%emt 0:00:02]} Bg4 {[%emt 0:00:44]} 9. h3 {[%emt 0:00:05]} Bxf3 {[%emt 0:00:01]} 10. Nxf3 {[%emt 0:00:08]} e5 {[%emt 0:00:59]} 11. Re1 {[%emt 0:00:38]} Rc8 {[%emt 0:00:46]} 12. Bf1 {[%emt 0:00:13]} d4 {[%emt 0:00:53]} 13. Bd2 {[%emt 0:00:48]} Nh5 {[%emt 0:01:24]} 14. Rad1 {[%emt 0:00:12]} f5 {[%emt 0:00:35]} 15. exf5 {[%emt 0:00:32]} gxf5 {[%emt 0:00:20]} 16. Qb3+ {[%emt 0:00:21]} Kh8 {[%emt 0:00:09]} 17. Qxb7 {[%emt 0:00:07]} Rc7 {[%emt 0:00:10]} 18. Qb5 {[%emt 0:00:09]} Qd6 {[%emt 0:00:56]} 19. cxd4 {[%emt 0:01:39]} cxd4 {[%emt 0:00:09]} 20. b3 {[%emt 0:00:37]} h6 {[%emt 0:01:44]} 21. Rc1 {[%emt 0:00:24]} Rfc8 {[%emt 0:02:56]} 22. Rc4 {[%emt 0:00:52]} Kh7 {[%emt 0:01:30]} 23. Rec1 {[%emt 0:01:19]} Nf6 {[%emt 0:01:11]} 24. Nh4 {[%emt 0:00:19]} f4 {[%emt 0:00:33]} 25. Be2 {[%emt 0:00:32]} Nd5 {[%emt 0:00:14]} 26. Bg4 {[%emt 0:00:26]} 1-0

[Event "3rd Caraca Open 2022"]
[Site "Catas Altas"]
[Date "2022.07.10"]
[Round "5.5"]
[White "Monteiro, Daniel Zotelli"]
[Black "Crespo De Oliveira, Lucas"]
[Result "1/2-1/2"]
[ECO "B60"]
[WhiteElo "1642"]
[BlackElo "2197"]
[Annotator "RC"]
[PlyCount "133"]
[EventDate "2022.06.28"]
[EventCountry "BRA"]
[SourceTitle "playchess.com"]
[Source "ChessBase"]
[SourceQuality "1"]
[TimeControl "900+5"]

1. e4 {[%emt 0:00:23]} c5 {[%emt 0:00:02]} 2. Nf3 {[%emt 0:00:04]} d6 {[%emt 0:00:02]} 3. d4 {[%emt 0:00:02]} cxd4 {[%emt 0:00:02]} 4. Nxd4 {[%emt 0:00:01]} Nf6 {[%emt 0:00:03]} 5. Nc3 {[%emt 0:00:02]} Nc6 {[%emt 0:00:09]} 6. Bg5 {[%emt 0:00:29]} Qb6 {[%emt 0:00:03]} 7. Nb3 {[%emt 0:00:28]} e6 {[%emt 0:00:03]} 8. Be2 {[%emt 0:00:55]} Be7 {[%emt 0:00:33]} 9. Be3 {[%emt 0:00:02]} Qc7 {[%emt 0:00:01]} 10. Qd2 {[%emt 0:00:10]} a6 {[%emt 0:00:16]} 11. O-O {[%emt 0:00:13]} b5 {[%emt 0:00:40]} 12. a3 {[%emt 0:00:18]} Ne5 {[%emt 0:01:45]} 13. Qd4 {[%emt 0:00:49]} Rb8 {[%emt 0:03:13]} 14. Qa7 {[%emt 0:00:34]} Qxa7 {[%emt 0:03:42]} 15. Bxa7 {[%emt 0:00:03]} Rb7 {[%emt 0:00:22]} 16. Bd4 {[%emt 0:00:07]} Nc4 {[%emt 0:01:14]} 17. Rab1 {[%emt 0:00:37]} e5 {[%emt 0:00:24]} 18. Be3 {[%emt 0:00:20]} Nxe3 {[%emt 0:00:04]} 19. fxe3 {[%emt 0:00:02]} Be6 {[%emt 0:00:24]} 20. Na5 {[%emt 0:00:31]} Rc7 {[%emt 0:00:11]} 21. Bf3 {[%emt 0:00:41]} O-O {[%emt 0:00:12]} 22. Rfd1 {[%emt 0:00:02]} Rfc8 {[%emt 0:00:09]} 23. Rd2 {[%emt 0:00:39]} Rb8 {[%emt 0:00:36]} 24. Nd5 {[%emt 0:00:33]} Bxd5 {[%emt 0:01:19]} 25. exd5 {[%emt 0:00:03]} e4 {[%emt 0:00:01]} 26. Bd1 {[%emt 0:00:33]} Rc5 {[%emt 0:00:16]} 27. Nc6 {[%emt 0:00:28]} Re8 {[%emt 0:00:01]} 28. Nb4 {[%emt 0:00:47]} a5 {[%emt 0:00:13]} 29. Na6 {[%emt 0:00:27]} Rxd5 {[%emt 0:00:00]} 30. Rxd5 {[%emt 0:00:03]} Nxd5 {[%emt 0:00:00]} 31. Kf2 {[%emt 0:00:02]} Bg5 {[%emt 0:00:05]} 32. Be2 {[%emt 0:00:14]} Bxe3+ {[%emt 0:00:06]} 33. Ke1 {[%emt 0:00:09]} b4 {[%emt 0:00:09]} 34. Rd1 {[%emt 0:00:16]} bxa3 {[%emt 0:00:08]} 35. bxa3 {[%emt 0:00:14]} Nf4 {[%emt 0:00:17]} 36. g3 {[%emt 0:00:24]} Nxe2 {[%emt 0:00:06]} 37. Kxe2 {[%emt 0:00:02]} Bc5 {[%emt 0:00:01]} 38. Nxc5 {[%emt 0:00:16]} dxc5 {[%emt 0:00:02]} 39. Rd5 {[%emt 0:00:05]} Rc8 {[%emt 0:00:11]} 40. Ke3 {[%emt 0:00:05]} g6 {[%emt 0:00:19]} 41. Kxe4 {[%emt 0:00:07]} Kg7 {[%emt 0:00:04]} 42. Kd3 {[%emt 0:00:14]} a4 {[%emt 0:00:17]} 43. Kc4 {[%emt 0:00:06]} Re8 {[%emt 0:00:03]} 44. Rd2 {[%emt 0:00:05]} Re3 {[%emt 0:00:03]} 45. c3 {[%emt 0:00:08]} g5 {[%emt 0:00:11]} 46. Rc2 {[%emt 0:00:01]} Re5 {[%emt 0:00:16]} 47. Kb5 {[%emt 0:00:04]} f5 {[%emt 0:00:05]} 48. Kxa4 {[%emt 0:00:05]} Kf6 {[%emt 0:00:05]} 49. Kb5 {[%emt 0:00:04]} f4 {[%emt 0:00:01]} 50. gxf4 {[%emt 0:00:02]} gxf4 {[%emt 0:00:01]} 51. a4 {[%emt 0:00:06]} Kf5 {[%emt 0:00:06]} 52. a5 {[%emt 0:00:05]} c4+ {[%emt 0:00:01]} 53. Kxc4 {[%emt 0:00:03]} Rxa5 {[%emt 0:00:01]} 54. Kd4 {[%emt 0:00:09]} Kg4 {[%emt 0:00:10]} 55. Ke4 {[%emt 0:00:10]} f3 {[%emt 0:00:17]} 56. Ke3 {[%emt 0:00:13]} Re5+ {[%emt 0:00:04]} 57. Kf2 {[%emt 0:00:02]} Kf4 {[%emt 0:00:02]} 58. c4 {[%emt 0:00:12]} Rh5 {[%emt 0:00:05]} 59. Kg1 {[%emt 0:00:13]} Rg5+ {[%emt 0:00:06]} 60. Kf1 {[%emt 0:00:03]} Rc5 {[%emt 0:00:10]} 61. Kf2 {[%emt 0:00:03]} Rg5 {[%emt 0:00:12]} 62. Kf1 {[%emt 0:00:10]} Ke4 {[%emt 0:00:04]} 63. c5 {[%emt 0:00:07]} Kd3 {[%emt 0:00:00]} 64. Rf2 {[%emt 0:00:09]} Ke3 {[%emt 0:00:18]} 65. Rc2 {[%emt 0:00:01]} Kd3 {[%emt 0:00:05]} 66. Rf2 {[%emt 0:00:01]} Ke3 {[%emt 0:00:24]} 67. Rc2 {[%emt 0:05:44]} 1/2-1/2

[Event "3rd Caraca Open 2022"]
[Site "Catas Altas"]
[Date "2022.07.10"]
[Round "6.1"]
[White "Mareco, Sandro"]
[Black "Supi, Luis Paulo"]
[Result "1/2-1/2"]
[ECO "D31"]
[WhiteElo "2657"]
[BlackElo "2603"]
[Annotator "TA"]
[PlyCount "39"]
[EventDate "2022.06.28"]
[EventCountry "BRA"]
[SourceTitle "playchess.com"]
[Source "ChessBase"]
[SourceQuality "1"]
[TimeControl "900+5"]

{[%evp 9,39,21,25,30,26,29,29,25,32,24,56,57,42,58,45,43,46,63,61,0,0,17,12,14,10,11,7,12,18,14,17,13]} 1. d4 {[%emt 0:00:01]} d5 {[%emt 0:00:06]} 2. c4 {[%emt 0:00:03]} e6 {[%emt 0:00:02]} 3. Nf3 {[%emt 0:00:01]} a6 {[%emt 0:00:13]} 4. cxd5 {[%emt 0:00:14]} exd5 {[%emt 0:00:01]} 5. Nc3 {[%emt 0:00:02]} h6 {[%emt 0:00:55]} 6. Bf4 {[%emt 0:03:22] D31: Queen's Gambit Declined: Semi-Slav without ...Nf6 (+ Marshall Gambit and Noteboom) and Exchange Variation lines without ...Nf6.} Nf6 {[%emt 0:00:02]} 7. Rc1 {[%emt 0:00:04]} Bd6 {[%emt 0:01:47] [#]} 8. Be5 $146 {[%emt 0:00:01] White has an edge.} ({Predecessor:} 8. Bxd6 Qxd6 9. e3 O-O 10. Bd3 Bg4 11. h3 Bxf3 12. Qxf3 Nbd7 13. O-O c6 14. Rfd1 {0-1 (46) Petrovic,A (2296)-Grandelius,N (2672) Chess.com INT 2022}) 8... Be6 {[%emt 0:00:06]} 9. Qb3 {[%emt 0:00:02]} O-O {[%emt 0:02:28]} 10. Qxb7 {[%emt 0:00:40]} Nbd7 {[%emt 0:00:43]} 11. Bxd6 {[%emt 0:00:15]} cxd6 {[%emt 0:00:01]} 12. Qb4 {[%emt 0:00:43]} Rb8 {[%emt 0:00:01][%cal Ba8b8,Bb8b2,Bb2a2][%mdl 32]} 13. Qa3 {[%emt 0:00:04]} Qb6 {[%emt 0:00:48]} 14. e3 {[%emt 0:04:06]} Qxb2 {[%emt 0:02:01] The position is equal.} 15. Qxb2 {[%emt 0:00:01]} Rxb2 {[%emt 0:00:01]} 16. Bxa6 {[%emt 0:00:02]} Ne4 {[%emt 0:00:10] [#] Hoping for ...Nxc3.} 17. O-O {[%emt 0:00:04]} Nxc3 {[%emt 0:00:41]} 18. Rxc3 {[%emt 0:00:01]} Rxa2 {[%emt 0:00:02]} 19. Bd3 {[%emt 0:00:09]} Nf6 {[%emt 0:00:06]} 20. Rc2 {[%emt 0:06:50] Weighted Error Value: White=0.05 (flawless) /Black=0.03 (flawless)} 1/2-1/2

[Event "3rd Caraca Open 2022"]
[Site "Catas Altas"]
[Date "2022.07.10"]
[Round "6.2"]
[White "Diamant, Andre"]
[Black "Gazel, Frederico"]
[Result "0-1"]
[ECO "C24"]
[WhiteElo "2538"]
[BlackElo "2300"]
[Annotator "TA"]
[PlyCount "68"]
[EventDate "2022.06.28"]
[EventCountry "BRA"]
[SourceTitle "playchess.com"]
[Source "ChessBase"]
[SourceQuality "1"]
[TimeControl "900+5"]

{[%evp 9,68,10,63,70,137,-20,-19,-42,-18,-30,-22,-27,0,-2,0,-22,-17,-21,41,-37,-20,-37,-19,-60,-61,-51,-66,-121,-41,-253,-246,-409,-188,-183,-156,-164,-91,-313,-235,-227,-164,-148,-155,-193,-83,-67,-60,-109,-116,-111,-41,-553,-538,-551,-539,-1608,-1660,-29995,-29996,-29996,-5481]} 1. e4 {[%emt 0:15:10]} e5 {[%emt 0:15:10]} 2. Bc4 {[%emt 0:00:05]} Nf6 {[%emt 0:00:05]} 3. d3 {[%emt 0:00:05]} c6 {[%emt 0:00:05]} 4. Nf3 {[%emt 0:00:05]} d5 {[%emt 0:00:05]} 5. Bb3 {[%emt 0:00:05]} dxe4 {[%emt 0:00:05]} (5... Bd6 $11) 6. Ng5 $14 {[%emt 0:00:05] C24: Bishop's Opening: 2...Nf6.} Bg4 {[%emt 0:00:05]} (6... Be6 $1 $14) 7. Qd2 $2 {[%emt 0:00:05]} (7. Bxf7+ $16 Ke7 8. Qd2) 7... Bh5 $1 $11 {[%emt 0:00:05] [#] And now ...exd3 would win.} (7... Nd5 8. dxe4 f6 9. h3 $16 (9. exd5 fxg5 10. Qc3 Qd6 $16)) 8. dxe4 $146 {[%emt 0:00:05][%cal Ob3f7] Hoping for Bxf7+! The position is equal.} ({Predecessor:} 8. Nxe4 Nxe4 9. dxe4 Qh4 10. O-O Nd7 11. Nc3 Bc5 12. Qe1 Nf6 13. h3 Bg4 14. Be3 Bxh3 15. gxh3 Qxh3 {1-0 (22) Kostic,V (2422)-Plachetka,J (2406) Austria 2008}) 8... Qc7 {[%emt 0:00:05]} 9. Nc3 {[%emt 0:00:05]} Na6 {[%emt 0:00:05]} 10. f3 {[%emt 0:00:05]} Bc5 {[%emt 0:00:05]} 11. Qe2 {[%emt 0:00:05]} O-O {[%emt 0:00:05]} 12. Bd2 {[%emt 0:00:05]} h6 {[%emt 0:00:05]} 13. Nh3 {[%emt 0:00:05]} b5 {[%emt 0:00:05]} (13... Bg6 $11) 14. O-O-O {[%emt 0:00:05]} (14. Nf2 $14) 14... Bd4 {[%emt 0:00:05]} 15. g4 $1 {[%emt 0:00:05]} Bg6 {[%emt 0:00:05]} 16. f4 {[%emt 0:00:05]} exf4 {[%emt 0:00:05]} 17. Nxf4 {[%emt 0:00:05]} Bh7 {[%emt 0:00:05]} 18. Nd3 {[%emt 0:00:05]} (18. h4 $1 $15 Bxc3 19. bxc3 Nxe4 20. g5) 18... Rfe8 {[%emt 0:00:05]} (18... Rae8 $17 {Threatens to win with ...Bxc3.} 19. Rhf1 (19. Bf4 $2 Qa5 $17) 19... Nxe4 20. Nxe4 Bxe4) 19. Rdf1 $2 {[%emt 0:00:05]} (19. Rhf1 $15) 19... b4 $1 $19 {[%emt 0:00:05]} ({Weaker is} 19... Bxe4 20. Rxf6 $1 Bxd3 21. Rxf7 Bxe2 22. Rxc7+ Kh8 23. Nxe2 $1 (23. Rxc6 Bf3 $15) 23... Rxe2 24. Rxc6 $16) 20. Nd1 {[%emt 0:00:05]} (20. h4 bxc3 21. bxc3 Bxe4 22. cxd4 Bxh1 23. Ne5) 20... Rxe4 {[%emt 0:00:05]} (20... Bxe4 $142 21. Rxf6 Bxf6) 21. Qf3 {[%emt 0:00:05]} Rxg4 {[%emt 0:00:05]} 22. Bf4 {[%emt 0:00:05]} Qa5 {[%emt 0:00:05]} ({Better is} 22... Qb6 $19 23. N1f2 Rh4) 23. Re1 {[%emt 0:00:05] Inhibits Be4.} (23. N1f2 $17 {only move.} Bxd3 24. Nxg4 Bxf1 25. Nxf6+ Bxf6 26. Qxc6) 23... Bxd3 {[%emt 0:00:05]} 24. cxd3 {[%emt 0:00:05]} Nc5 {[%cal Og4f4] ...Rxf4! is the strong threat.} 25. Bc4 {[%emt 0:00:05]} Ne6 {[%emt 0:00:10]} 26. Bd2 {[%emt 0:00:05]} Re8 {[%emt 0:00:05]} (26... Qc5 $19 {Strongly threatening ...Ng5.} 27. Rhf1 Rh4) 27. Qxc6 $17 {[%emt 0:00:05]} Qc5 {[%emt 0:00:05]} 28. Qf3 {[%emt 0:00:05]} (28. Qxc5 $15 Bxc5 29. Ne3) 28... Be5 $36 {[%emt 0:00:05][%mdl 2048] White is under strong pressure.} 29. Kb1 {[%emt 0:00:05][%cal Od2b4] [#]} Rd8 {[%emt 0:00:05] 0x0.0022fd4eefcfdp-1022s more active pieces. The white rooks are badly placed.} (29... Ng5 $1 $17 {[%cal Rg5f3]} 30. Qb7 Rb8) 30. Rhf1 {[%emt 0:00:05][%mdl 8192]} (30. Bc1 $15) 30... Rxc4 $19 {[%emt 0:00:05]} 31. dxc4 {[%emt 0:00:05][%cal Od2b4]} Rxd2 {[%emt 0:00:05]} 32. Qf5 {[%emt 0:00:05] [#]} Qd4 $1 {[%emt 0:00:05][%cal Od2d1] ( -> ...Rxd1+!)} 33. Rxe5 {[%emt 0:00:05]} (33. Qxe5 Rxd1+) 33... Rxd1+ {[%emt 0:00:05]} 34. Kc2 {[%emt 0:00:05]} Rxf1 {[%emt 0:00:05] Weighted Error Value: White=1.15/Black=0.35} (34... Rd2+ $142 35. Kb3 Rxb2+ 36. Ka4 Rxa2+ 37. Kxb4 Qb2#) 0-1